[Event "Panchenko Memorial 2019"]
[Site "Chelyabinsk"]
[Date "2019.09.17"]
[Round "9.7"]
[White "Yudin, Sergei"]
[Black "Vokarev, Sergey"]
[Result "1-0"]
[ECO "C50"]
[WhiteElo "2494"]
[BlackElo "2443"]
[Annotator "ChessBase"]
[PlyCount "75"]
[EventDate "2019.09.09"]
[EventType "swiss"]
[EventCountry "RUS"]
[SourceTitle "playchess.com"]
[Source "ChessBase"]
[SourceQuality "1"]
[TimeControl "5400+30"]

1. e4 {[%emt 0:00:00]} e5 {[%emt 0:00:00]} 2. Nf3 {[%emt 0:00:00]} Nc6 {[%emt 0:00:00]} 3. Bc4 {[%emt 0:00:00]} Bc5 {[%emt 0:00:00]} 4. O-O {[%emt 0:00:11]} Nf6 {[%emt 0:00:01]} 5. d3 {[%emt 0:00:15]} h6 {[%emt 0:00:54]} 6. c3 {[%emt 0:00:16]} d6 {[%emt 0:00:06]} 7. a4 {[%emt 0:00:15]} a5 {[%emt 0:00:23]} 8. Re1 {[%emt 0:07:07]} O-O {[%emt 0:00:28]} 9. h3 {[%emt 0:01:07]} Be6 {[%emt 0:02:35]} 10. b3 {[%emt 0:01:00]} Ba7 {[%emt 0:11:36]} 11. Na3 {[%emt 0:06:57]} Ne7 {[%emt 0:04:39]} 12. Bxe6 {[%emt 0:05:58]} fxe6 {[%emt 0:00:04]} 13. Nc4 {[%emt 0:00:58]} Nc6 {[%emt 0:06:04]} 14. d4 {[%emt 0:11:41]} exd4 {[%emt 0:04:39]} 15. cxd4 {[%emt 0:03:42]} d5 {[%emt 0:04:53]} 16. exd5 {[%emt 0:00:24]} exd5 {[%emt 0:06:27]} 17. Nce5 {[%emt 0:00:58]} Nxe5 {[%emt 0:02:28]} 18. Nxe5 {[%emt 0:01:17]} Nd7 {[%emt 0:15:50]} 19. Ba3 {[%emt 0:16:40]} Rf4 {[%emt 0:11:46]} 20. Ng6 {[%emt 0:03:17]} Rxd4 {[%emt 0:00:40]} 21. Qc2 {[%emt 0:02:21]} Qg5 {[%emt 0:08:32]} 22. Bc1 {[%emt 0:00:59]} Qh5 {[%emt 0:01:22]} 23. Be3 {[%emt 0:01:13]} Re4 {[%emt 0:01:06]} 24. Bxa7 {[%emt 0:01:00]} Qxg6 {[%emt 0:02:59]} 25. Rxe4 {[%emt 0:00:42]} Qxe4 {[%emt 0:11:40]} 26. Qxc7 {[%emt 0:00:14]} Rxa7 {[%emt 0:02:24]} 27. Qxd7 {[%emt 0:00:18]} Qd4 {[%emt 0:00:47]} 28. Qc8+ {[%emt 0:05:42]} Kh7 {[%emt 0:00:03]} 29. Re1 {[%emt 0:00:07]} Qf4 {[%emt 0:01:17]} 30. Qc2+ {[%emt 0:02:07]} Kg8 {[%emt 0:00:02]} 31. Re8+ {[%emt 0:01:13]} Kf7 {[%emt 0:00:01]} 32. Qc8 {[%emt 0:00:10]} Qd6 {[%emt 0:00:28]} 33. Rd8 {[%emt 0:00:21]} Qe5 {[%emt 0:00:30]} 34. Rf8+ {[%emt 0:02:22]} Kg6 {[%emt 0:00:02]} 35. f4 {[%emt 0:00:18]} Qe4 {[%emt 0:01:50]} 36. Qd8 {[%emt 0:04:00]} Qe3+ {[%emt 0:00:49]} 37. Kh2 {[%emt 0:00:57]} Qe2 {[%emt 0:00:23]} 38. Qb6+ {[%emt 0:00:57]} 1-0

[Event "Panchenko Memorial 2019"]
[Site "Chelyabinsk"]
[Date "2019.09.17"]
[Round "9.8"]
[White "Bezgodov, Alexei"]
[Black "Salemgareev, Tagir"]
[Result "0-1"]
[ECO "B32"]
[WhiteElo "2453"]
[BlackElo "2457"]
[Annotator "ChessBase"]
[PlyCount "74"]
[EventDate "2019.09.09"]
[EventType "swiss"]
[EventCountry "RUS"]
[SourceTitle "playchess.com"]
[Source "ChessBase"]
[SourceQuality "1"]
[TimeControl "5400+30"]

1. e4 {[%emt 0:00:00]} c5 {[%emt 0:00:00]} 2. Nf3 {[%emt 0:00:00]} Nc6 {[%emt 0:00:00]} 3. d4 {[%emt 0:00:00]} cxd4 {[%emt 0:00:00]} 4. Nxd4 {[%emt 0:00:00]} e5 {[%emt 0:00:00]} 5. Nb5 {[%emt 0:00:13]} d6 {[%emt 0:00:00]} 6. c4 {[%emt 0:07:09]} Be7 {[%emt 0:00:00]} 7. N1c3 {[%emt 0:00:05]} a6 {[%emt 0:00:04]} 8. Na3 {[%emt 0:00:04]} f5 {[%emt 0:00:04]} 9. Bd3 {[%emt 0:13:24]} f4 {[%emt 0:00:10]} 10. g4 {[%emt 0:00:12]} Bh4 {[%emt 0:22:58]} 11. Nc2 {[%emt 0:04:26]} Nf6 {[%emt 0:00:17]} 12. h3 {[%emt 0:08:09]} O-O {[%emt 0:01:38]} 13. Qf3 {[%emt 0:02:24]} Nd7 {[%emt 0:04:28]} 14. Rf1 {[%emt 0:18:16]} Nc5 {[%emt 0:02:21]} 15. Bd2 {[%emt 0:04:48]} Ne6 {[%emt 0:04:52]} 16. Nd5 {[%emt 0:02:00]} Ned4 {[%emt 0:08:33]} 17. Qd1 {[%emt 0:00:27]} Nxc2+ {[%emt 0:05:17]} 18. Bxc2 {[%emt 0:00:22]} h5 {[%emt 0:01:36]} 19. Bc3 {[%emt 0:00:56]} hxg4 {[%emt 0:05:02]} 20. hxg4 {[%emt 0:00:07]} Qg5 {[%emt 0:00:34]} 21. Nb6 {[%emt 0:00:52]} Bxg4 {[%emt 0:01:43]} 22. Qd5+ {[%emt 0:00:24]} Kh8 {[%emt 0:06:36]} 23. Nxa8 {[%emt 0:01:13]} Rxa8 {[%emt 0:02:25]} 24. Bd1 {[%emt 0:04:54]} Bh3 {[%emt 0:08:54]} 25. Bf3 {[%emt 0:00:17]} Bxf1 {[%emt 0:00:06]} 26. Kxf1 {[%emt 0:00:03]} Qe7 {[%emt 0:01:10]} 27. b4 {[%emt 0:04:32]} g6 {[%emt 0:05:11]} 28. b5 {[%emt 0:08:26]} axb5 {[%emt 0:00:59]} 29. cxb5 {[%emt 0:00:26]} Nd8 {[%emt 0:01:24]} 30. Bb4 {[%emt 0:01:24]} Nf7 {[%emt 0:00:56]} 31. Bd1 {[%emt 0:06:04]} Qd7 {[%emt 0:06:36]} 32. Qd3 {[%emt 0:05:54]} Kg7 {[%emt 0:00:19]} 33. a4 {[%emt 0:00:48]} Rh8 {[%emt 0:00:41]} 34. Qf3 {[%emt 0:04:45]} Ng5 {[%emt 0:02:41]} 35. Qg4 {[%emt 0:00:15]} Qc7 {[%emt 0:02:14]} 36. Be2 {[%emt 0:01:19]} f3 {[%emt 0:01:03]} 37. Bd3 {[%emt 0:00:27]} Bg3 {[%emt 0:01:02]} 0-1

[Event "Panchenko Memorial 2019"]
[Site "Chelyabinsk"]
[Date "2019.09.17"]
[Round "9.9"]
[White "Bocharov, Ivan"]
[Black "Nugumanov, Bakhtiyar"]
[Result "1-0"]
[ECO "B13"]
[WhiteElo "2557"]
[BlackElo "2387"]
[Annotator "ChessBase"]
[PlyCount "133"]
[EventDate "2019.09.09"]
[EventType "swiss"]
[EventCountry "RUS"]
[SourceTitle "playchess.com"]
[Source "ChessBase"]
[SourceQuality "1"]
[TimeControl "5400+30"]

1. e4 {[%emt 0:00:00]} c6 {[%emt 0:01:17]} 2. d4 {[%emt 0:00:28]} d5 {[%emt 0:00:11]} 3. exd5 {[%emt 0:01:27]} cxd5 {[%emt 0:00:06]} 4. Bd3 {[%emt 0:00:02]} Nc6 {[%emt 0:03:11]} 5. c3 {[%emt 0:00:10]} Nf6 {[%emt 0:00:17]} 6. h3 {[%emt 0:00:31]} g6 {[%emt 0:04:25]} 7. Bf4 {[%emt 0:00:07]} Bf5 {[%emt 0:00:45]} 8. Be2 {[%emt 0:00:01]} Bg7 {[%emt 0:02:56]} 9. Nf3 {[%emt 0:00:05]} O-O {[%emt 0:03:07]} 10. O-O {[%emt 0:00:06]} Bxb1 {[%emt 0:06:58]} 11. Rxb1 {[%emt 0:00:08]} e6 {[%emt 0:00:44]} 12. Bd3 {[%emt 0:00:23]} a6 {[%emt 0:02:26]} 13. Re1 {[%emt 0:00:23]} Ne8 {[%emt 0:03:10]} 14. h4 {[%emt 0:00:44]} Nf6 {[%emt 0:05:55]} 15. Qe2 {[%emt 0:05:23]} b5 {[%emt 0:11:33]} 16. a4 {[%emt 0:05:42]} b4 {[%emt 0:14:00]} 17. Bxa6 {[%emt 0:01:06]} Qb6 {[%emt 0:00:39]} 18. Bb5 {[%emt 0:00:08]} bxc3 {[%emt 0:04:28]} 19. bxc3 {[%emt 0:00:07]} Ne4 {[%emt 0:00:23]} 20. Qd3 {[%emt 0:00:33]} Rfc8 {[%emt 0:01:28]} 21. Ng5 {[%emt 0:07:00]} e5 {[%emt 0:06:12]} 22. Be3 {[%emt 0:01:13]} Nxg5 {[%emt 0:07:30]} 23. hxg5 {[%emt 0:02:33]} e4 {[%emt 0:00:30]} 24. Qe2 {[%emt 0:02:48]} Qc7 {[%emt 0:04:13]} 25. f3 {[%emt 0:05:17]} Ne7 {[%emt 0:02:33]} 26. fxe4 {[%emt 0:02:23]} dxe4 {[%emt 0:03:15]} 27. c4 {[%emt 0:00:15]} Nf5 {[%emt 0:00:28]} 28. Rbd1 {[%emt 0:00:46]} Rd8 {[%emt 0:01:22]} 29. d5 {[%emt 0:02:13]} Bf8 {[%emt 0:01:16]} 30. Qf2 {[%emt 0:05:26]} Nxe3 {[%emt 0:01:24]} 31. Rxe3 {[%emt 0:00:11]} Bc5 {[%emt 0:00:07]} 32. Kh1 {[%emt 0:03:15]} Ra7 {[%emt 0:03:00]} 33. Qg3 {[%emt 0:00:40]} Qxg3 {[%emt 0:01:44]} 34. Rxg3 {[%emt 0:00:02]} e3 {[%emt 0:01:07]} 35. Re1 {[%emt 0:02:28]} Re7 {[%emt 0:00:11]} 36. Re2 {[%emt 0:00:01]} Re5 {[%emt 0:01:57]} 37. a5 {[%emt 0:00:51]} Kf8 {[%emt 0:00:39]} 38. a6 {[%emt 0:01:26]} Ke7 {[%emt 0:00:38]} 39. Rf3 {[%emt 0:00:01]} h6 {[%emt 0:01:19]} 40. gxh6 {[%emt 0:02:01]} Rh8 {[%emt 0:01:06]} 41. Rh3 {[%emt 0:00:45]} f5 {[%emt 0:00:41]} 42. g3 {[%emt 0:00:01]} g5 {[%emt 0:00:17]} 43. Kg2 {[%emt 0:00:02]} Kf6 {[%emt 0:00:29]} 44. Rh1 {[%emt 0:01:21]} Rh7 {[%emt 0:00:42]} 45. Rd1 {[%emt 0:00:34]} Rxh6 {[%emt 0:00:54]} 46. d6 {[%emt 0:00:18]} Rh8 {[%emt 0:00:13]} 47. d7 {[%emt 0:00:57]} Rd8 {[%emt 0:00:13]} 48. Ra2 {[%emt 0:03:40]} Ba7 {[%emt 0:00:21]} 49. Kf3 {[%emt 0:00:13]} g4+ {[%emt 0:01:23]} 50. Ke2 {[%emt 0:00:12]} f4 {[%emt 0:00:27]} 51. gxf4 {[%emt 0:00:22]} Rh5 {[%emt 0:00:20]} 52. Kd3 {[%emt 0:00:54]} Kf5 {[%emt 0:00:37]} 53. Rf1 {[%emt 0:03:07]} Rh3 {[%emt 0:00:28]} 54. Re2 {[%emt 0:01:03]} g3 {[%emt 0:00:44]} 55. Rg2 {[%emt 0:04:21]} Rh6 {[%emt 0:00:26]} 56. Rxg3 {[%emt 0:01:38]} Rd6+ {[%emt 0:00:17]} 57. Ke2 {[%emt 0:01:04]} Ke4 {[%emt 0:00:26]} 58. Rd1 {[%emt 0:00:02]} Rh6 {[%emt 0:00:54]} 59. Rg2 {[%emt 0:00:11]} Kxf4 {[%emt 0:00:28]} 60. Rd5 {[%emt 0:00:02]} Rh1 {[%emt 0:00:35]} 61. Rdg5 {[%emt 0:00:19]} Rh2 {[%emt 0:00:33]} 62. Rxh2 {[%emt 0:02:16]} Kxg5 {[%emt 0:00:01]} 63. Rh7 {[%emt 0:01:57]} Kf6 {[%emt 0:00:39]} 64. Rh5 {[%emt 0:00:14]} Bd4 {[%emt 0:00:44]} 65. Rd5 {[%emt 0:00:30]} Ba7 {[%emt 0:00:12]} 66. c5 {[%emt 0:00:13]} Ke6 {[%emt 0:00:09]} 67. Bc6 {[%emt 0:00:16]} 1-0

[Event "Panchenko Memorial 2019"]
[Site "Chelyabinsk"]
[Date "2019.09.17"]
[Round "9.10"]
[White "Tsvetkov, Andrey"]
[Black "Zakhartsov, Vladimir"]
[Result "0-1"]
[ECO "E73"]
[WhiteElo "2373"]
[BlackElo "2519"]
[Annotator "ChessBase"]
[PlyCount "40"]
[EventDate "2019.09.09"]
[EventType "swiss"]
[EventCountry "RUS"]
[SourceTitle "playchess.com"]
[Source "ChessBase"]
[SourceQuality "1"]
[TimeControl "5400+30"]

1. d4 {[%emt 0:00:00]} Nf6 {[%emt 0:07:38]} 2. c4 {[%emt 0:00:00]} g6 {[%emt 0:00:03]} 3. Nc3 {[%emt 0:00:00]} Bg7 {[%emt 0:00:04]} 4. e4 {[%emt 0:00:00]} d6 {[%emt 0:00:03]} 5. Be2 {[%emt 0:00:00]} O-O {[%emt 0:00:04]} 6. Be3 {[%emt 0:00:00]} e5 {[%emt 0:00:04]} 7. d5 {[%emt 0:00:00]} Na6 {[%emt 0:00:04]} 8. h4 {[%emt 0:00:05]} Nc5 {[%emt 0:00:04]} 9. Qc2 {[%emt 0:00:02]} c6 {[%emt 0:00:04]} 10. h5 {[%emt 0:19:03]} cxd5 {[%emt 0:00:13]} 11. cxd5 {[%emt 0:00:13]} Qa5 {[%emt 0:00:04]} 12. hxg6 {[%emt 0:01:21]} Ncxe4 {[%emt 0:03:55]} 13. gxh7+ {[%emt 0:05:27]} Kh8 {[%emt 0:02:36]} 14. Bh6 {[%emt 0:03:42]} Bf5 {[%emt 0:04:14]} 15. Bxg7+ {[%emt 0:09:08]} Kxg7 {[%emt 0:00:08]} 16. Bd3 {[%emt 0:00:44]} Rac8 {[%emt 0:07:49]} 17. Nf3 {[%emt 0:11:44]} Bg6 {[%emt 0:07:05]} 18. Nh4 {[%emt 0:23:24]} Nxc3 {[%emt 0:06:48]} 19. Qd2 {[%emt 0:00:04]} e4 {[%emt 0:01:01]} 20. Qg5 {[%emt 0:10:43]} Qxd5 {[%emt 0:02:41]} 0-1